[Event "46th GRE-chT Premier 2018"]
[Site "Rio Achaia"]
[Date "2018.07.11"]
[Round "2"]
[White "Lupulescu, Constantin"]
[Black "Fier, Alexandr"]
[Result "1/2-1/2"]
[ECO "B31"]
[WhiteElo "2617"]
[BlackElo "2570"]
[Annotator "ChessBase"]
[PlyCount "71"]
[EventDate "2018.07.10"]
[EventType "team-tourn"]
[EventCountry "GRE"]
[SourceTitle "playchess.com"]
[Source "ChessBase"]
[SourceQuality "1"]
[TimeControl "40/5400+30:1800+30"]

1. e4 {[%emt 0:00:00]} c5 {[%emt 0:00:00]} 2. Nf3 {[%emt 0:00:00]} Nc6 {[%emt 0:00:00]} 3. Bb5 {[%emt 0:00:00]} g6 {[%emt 0:00:00]} 4. Bxc6 {[%emt 0:00:00]} bxc6 {[%emt 0:00:00]} 5. O-O {[%emt 0:00:09]} Bg7 {[%emt 0:00:00]} 6. Re1 {[%emt 0:00:58]} Nh6 {[%emt 0:00:03]} 7. c3 {[%emt 0:00:45]} O-O {[%emt 0:00:06]} 8. d4 {[%emt 0:00:24]} cxd4 {[%emt 0:00:39]} 9. cxd4 {[%emt 0:00:09]} d5 {[%emt 0:00:04]} 10. e5 {[%emt 0:00:16]} f6 {[%emt 0:00:07]} 11. Qc2 {[%emt 0:00:12]} Bg4 {[%emt 0:09:36]} 12. Nbd2 {[%emt 0:01:51]} Qb6 {[%emt 0:00:25]} 13. h3 {[%emt 0:01:28]} Bxf3 {[%emt 0:03:20]} 14. Nxf3 {[%emt 0:00:57]} Nf5 {[%emt 0:00:06]} 15. e6 {[%emt 0:16:14]} Rfc8 {[%emt 0:06:45]} 16. Qd3 {[%emt 0:08:39]} Qb5 {[%emt 0:03:25]} 17. Qd1 {[%emt 0:03:51]} c5 {[%emt 0:09:45]} 18. dxc5 {[%emt 0:00:59]} Qxc5 {[%emt 0:00:35]} 19. Bf4 {[%emt 0:05:22]} Qb4 {[%emt 0:02:27]} 20. Bh2 {[%emt 0:02:22]} Nh4 {[%emt 0:13:21]} 21. Nxh4 {[%emt 0:03:40]} Qxh4 {[%emt 0:00:04]} 22. Qxd5 {[%emt 0:00:13]} f5 {[%emt 0:00:03]} 23. Be5 {[%emt 0:04:20]} Qc4 {[%emt 0:00:20]} 24. Rad1 {[%emt 0:13:22]} Qxd5 {[%emt 0:01:04]} 25. Rxd5 {[%emt 0:00:09]} Bxe5 {[%emt 0:00:02]} 26. Rdxe5 {[%emt 0:02:21]} Kg7 {[%emt 0:00:42]} 27. Ra5 {[%emt 0:03:21]} Rc6 {[%emt 0:03:19]} 28. g4 {[%emt 0:04:33]} Kf6 {[%emt 0:01:26]} 29. Kg2 {[%emt 0:15:05]} Rc2 {[%emt 0:05:14]} 30. b3 {[%emt 0:00:55]} Rd8 {[%emt 0:00:20]} 31. gxf5 {[%emt 0:04:25]} Rdd2 {[%emt 0:00:26]} 32. Rf1 {[%emt 0:01:55]} Rxa2 {[%emt 0:03:13]} 33. Rxa2 {[%emt 0:00:17]} Rxa2 {[%emt 0:00:04]} 34. fxg6 {[%emt 0:00:06]} hxg6 {[%emt 0:00:03]} 35. Re1 {[%emt 0:00:15]} Ra6 {[%emt 0:00:15]} 36. Re4 {[%emt 0:01:18] Ke5} 1/2-1/2

[Event "46th GRE-chT Premier 2018"]
[Site "Rio Achaia"]
[Date "2018.07.11"]
[Round "2"]
[White "Istratescu, Andrei"]
[Black "Trimitzios, Petros"]
[Result "1-0"]
[ECO "C67"]
[WhiteElo "2575"]
[BlackElo "2300"]
[Annotator "ChessBase"]
[PlyCount "69"]
[EventDate "2018.07.10"]
[EventType "team-tourn"]
[EventCountry "GRE"]
[SourceTitle "playchess.com"]
[Source "ChessBase"]
[SourceQuality "1"]
[TimeControl "40/5400+30:1800+30"]

1. e4 {[%emt 0:04:02]} e5 {[%emt 0:00:00]} 2. Nf3 {[%emt 0:00:04]} Nc6 {[%emt 0:00:43]} 3. Bb5 {[%emt 0:00:04]} Nf6 {[%emt 0:00:35]} 4. O-O {[%emt 0:01:14]} Nxe4 {[%emt 0:00:58]} 5. d4 {[%emt 0:00:05]} Nd6 {[%emt 0:00:24]} 6. Bxc6 {[%emt 0:00:04]} dxc6 {[%emt 0:00:09]} 7. dxe5 {[%emt 0:00:03]} Nf5 {[%emt 0:00:15]} 8. Qxd8+ {[%emt 0:00:04]} Kxd8 {[%emt 0:00:02]} 9. Nc3 {[%emt 0:00:13]} Ke8 {[%emt 0:06:11]} 10. h3 {[%emt 0:01:30]} Be6 {[%emt 0:04:18]} 11. Rd1 {[%emt 0:05:44]} Bb4 {[%emt 0:05:19]} 12. Ne2 {[%emt 0:03:36]} Bd5 {[%emt 0:10:45]} 13. Nfd4 {[%emt 0:00:51]} Ne7 {[%emt 0:00:51]} 14. Nf4 {[%emt 0:01:14]} Rd8 {[%emt 0:05:21]} 15. Be3 {[%emt 0:09:38]} f6 {[%emt 0:14:02]} 16. a3 {[%emt 0:08:35]} Ba5 {[%emt 0:06:51]} 17. exf6 {[%emt 0:03:57]} gxf6 {[%emt 0:00:11]} 18. Rac1 {[%emt 0:02:09]} Bb6 {[%emt 0:07:01]} 19. c4 {[%emt 0:00:33]} Bxc4 {[%emt 0:00:20]} 20. Rxc4 {[%emt 0:00:17]} c5 {[%emt 0:00:02]} 21. Nfe6 {[%emt 0:00:13]} Rd5 {[%emt 0:00:02]} 22. Re1 {[%emt 0:08:46]} cxd4 {[%emt 0:11:31]} 23. Bxd4 {[%emt 0:01:29]} Kf7 {[%emt 0:01:32]} 24. Bxb6 {[%emt 0:00:16]} cxb6 {[%emt 0:00:03]} 25. Rc7 {[%emt 0:00:23]} Re5 {[%emt 0:04:12]} 26. Ng5+ {[%emt 0:03:20]} Rxg5 {[%emt 0:03:23]} 27. Rexe7+ {[%emt 0:00:31]} Kg6 {[%emt 0:00:08]} 28. Rg7+ {[%emt 0:02:19]} Kh6 {[%emt 0:00:13]} 29. Rxg5 {[%emt 0:00:03]} fxg5 {[%emt 0:00:03]} 30. Rxb7 {[%emt 0:00:05]} Rd8 {[%emt 0:00:01]} 31. Rxa7 {[%emt 0:01:21]} Rd1+ {[%emt 0:00:07]} 32. Kh2 {[%emt 0:00:03]} Rd2 {[%emt 0:00:04]} 33. b4 {[%emt 0:00:04]} Rxf2 {[%emt 0:00:27]} 34. Ra6 {[%emt 0:00:06]} Rf6 {[%emt 0:00:07]} 35. a4 {[%emt 0:00:03]} 1-0

[Event "46th GRE-chT Premier 2018"]
[Site "Rio Achaia"]
[Date "2018.07.11"]
[Round "2"]
[White "Mihok, Oliver"]
[Black "Koyias, Konstantinos"]
[Result "1-0"]
[ECO "B40"]
[WhiteElo "2550"]
[BlackElo "2192"]
[Annotator "RC"]
[PlyCount "81"]
[EventDate "2018.07.10"]
[EventType "team-tourn"]
[EventCountry "GRE"]
[SourceTitle "playchess.com"]
[Source "ChessBase"]
[SourceQuality "1"]
[TimeControl "40/5400+30:1800+30"]

1. e4 {[%emt 0:00:00]} c5 {[%emt 0:00:00]} 2. Nf3 {[%emt 0:00:00]} e6 {[%emt 0:00:00]} 3. g3 {[%emt 0:00:04]} Nc6 {[%emt 0:00:00]} 4. Bg2 {[%emt 0:00:05]} Nf6 {[%emt 0:00:37]} 5. d3 {[%emt 0:00:10]} d6 {[%emt 0:00:14]} 6. O-O {[%emt 0:00:16]} Be7 {[%emt 0:00:30]} 7. c3 {[%emt 0:01:28]} O-O {[%emt 0:02:08]} 8. Re1 {[%emt 0:00:16]} e5 {[%emt 0:02:00]} 9. h3 {[%emt 0:03:47]} Rb8 {[%emt 0:03:51]} 10. d4 {[%emt 0:05:15]} b5 {[%emt 0:06:34]} 11. d5 {[%emt 0:03:39]} Na5 {[%emt 0:00:11]} 12. Nbd2 {[%emt 0:01:02]} Bd7 {[%emt 0:02:37]} 13. b4 {[%emt 0:04:10]} Nb7 {[%emt 0:00:49]} 14. Nf1 {[%emt 0:04:41]} a5 {[%emt 0:04:33]} 15. a3 {[%emt 0:01:16]} Qc7 {[%emt 0:06:13]} 16. g4 {[%emt 0:05:17]} g6 {[%emt 0:11:17]} 17. Bg5 {[%emt 0:06:09]} Kg7 {[%emt 0:03:47]} 18. Ng3 {[%emt 0:01:59]} Ng8 {[%emt 0:03:54]} 19. Be3 {[%emt 0:02:15]} Rbc8 {[%emt 0:01:35]} 20. Qd2 {[%emt 0:07:12]} Ra8 {[%emt 0:05:57]} 21. Bf1 {[%emt 0:02:32]} Rfc8 {[%emt 0:02:13]} 22. Reb1 {[%emt 0:05:12]} Rcb8 {[%emt 0:08:29]} 23. Kh2 {[%emt 0:03:32]} Qc8 {[%emt 0:05:11]} 24. Rc1 {[%emt 0:02:54]} c4 {[%emt 0:00:55]} 25. Be2 {[%emt 0:04:36]} axb4 {[%emt 0:00:45]} 26. cxb4 {[%emt 0:02:33]} Qe8 {[%emt 0:05:27]} 27. Rg1 {[%emt 0:01:57]} Kh8 {[%emt 0:01:07]} 28. Qc3 {[%emt 0:01:32]} Bf6 {[%emt 0:01:11]} 29. Rg2 {[%emt 0:00:30]} Qe7 {[%emt 0:03:24]} 30. Rh1 {[%emt 0:01:34]} h6 {[%emt 0:01:23]} 31. Kg1 {[%emt 0:02:51]} Bg7 {[%emt 0:00:16]} 32. Ne1 {[%emt 0:02:37]} Bf6 {[%emt 0:03:30]} 33. h4 {[%emt 0:03:14]} Bxh4 {[%emt 0:02:14]} 34. f4 {[%emt 0:07:14]} Kg7 {[%emt 0:09:58]} 35. Nf3 {[%emt 0:03:04]} Bxg3 {[%emt 0:00:24]} 36. Rxg3 {[%emt 0:00:05]} f6 {[%emt 0:00:24]} 37. g5 {[%emt 0:04:12]} hxg5 {[%emt 0:02:53]} 38. fxg5 {[%emt 0:00:05]} Rf8 {[%emt 0:00:18]} 39. gxf6+ {[%emt 0:01:51]} Qxf6 {[%emt 0:00:02]} 40. Ng5 {[%emt 0:00:00]} Qd8 {[%emt 0:00:00]} 41. Rh7+ {[%emt 0:01:36]} 1-0

[Event "46th GRE-chT Premier 2018"]
[Site "Rio Achaia"]
[Date "2018.07.11"]
[Round "2"]
[White "Czarnota, Pawel"]
[Black "Nikolov, Momchil"]
[Result "1/2-1/2"]
[ECO "C42"]
[WhiteElo "2549"]
[BlackElo "2551"]
[Annotator "ChessBase"]
[PlyCount "61"]
[EventDate "2018.07.10"]
[EventType "team-tourn"]
[EventCountry "GRE"]
[SourceTitle "playchess.com"]
[Source "ChessBase"]
[SourceQuality "1"]
[TimeControl "40/5400+30:1800+30"]

1. e4 {[%emt 0:00:00]} e5 {[%emt 0:00:07]} 2. Nf3 {[%emt 0:00:00]} Nf6 {[%emt 0:00:15]} 3. Nxe5 {[%emt 0:00:09]} d6 {[%emt 0:00:12]} 4. Nf3 {[%emt 0:00:07]} Nxe4 {[%emt 0:00:12]} 5. Nc3 {[%emt 0:00:56]} Nxc3 {[%emt 0:00:10]} 6. dxc3 {[%emt 0:00:05]} Be7 {[%emt 0:00:11]} 7. Bf4 {[%emt 0:00:51]} Nc6 {[%emt 0:00:23]} 8. Qd2 {[%emt 0:00:19]} Be6 {[%emt 0:00:26]} 9. O-O-O {[%emt 0:01:36]} Qd7 {[%emt 0:00:24]} 10. Be2 {[%emt 0:02:33]} h6 {[%emt 0:05:03]} 11. Kb1 {[%emt 0:04:45]} a6 {[%emt 0:10:48]} 12. Rhe1 {[%emt 0:05:00]} O-O-O {[%emt 0:14:09]} 13. Nd4 {[%emt 0:05:32]} Nxd4 {[%emt 0:01:58]} 14. cxd4 {[%emt 0:02:22]} d5 {[%emt 0:04:20]} 15. Bd3 {[%emt 0:01:46]} Rhe8 {[%emt 0:07:01]} 16. Be5 {[%emt 0:03:00]} f6 {[%emt 0:03:40]} 17. Bg3 {[%emt 0:00:37]} Bd6 {[%emt 0:11:17]} 18. Bg6 {[%emt 0:05:01]} Bf7 {[%emt 0:02:40]} 19. Bxf7 {[%emt 0:04:08]} Rxe1 {[%emt 0:04:07]} 20. Rxe1 {[%emt 0:01:09]} Qxf7 {[%emt 0:00:07]} 21. Bxd6 {[%emt 0:07:37]} Rxd6 {[%emt 0:00:10]} 22. Qe2 {[%emt 0:00:26]} Kd8 {[%emt 0:03:56]} 23. Kc1 {[%emt 0:01:07]} Rd7 {[%emt 0:00:54]} 24. Kd2 {[%emt 0:00:28]} Re7 {[%emt 0:00:40]} 25. Qxe7+ {[%emt 0:00:24]} Qxe7 {[%emt 0:00:07]} 26. Rxe7 {[%emt 0:00:04]} Kxe7 {[%emt 0:00:07]} 27. Ke3 {[%emt 0:00:17]} g5 {[%emt 0:01:08]} 28. f4 {[%emt 0:01:36]} Ke6 {[%emt 0:02:17]} 29. fxg5 {[%emt 0:00:25]} fxg5 {[%emt 0:00:08]} 30. g4 {[%emt 0:00:04]} a5 {[%emt 0:00:20]} 31. a4 {[%emt 0:00:14] Ke5 Ke4+} 1/2-1/2

[Event "46th GRE-chT Premier 2018"]
[Site "Rio Achaia"]
[Date "2018.07.11"]
[Round "2"]
[White "Kuljasevic, Davorin"]
[Black "Safarli, Eltaj"]
[Result "1/2-1/2"]
[ECO "D97"]
[WhiteElo "2545"]
[BlackElo "2667"]
[Annotator "RC"]
[PlyCount "91"]
[EventDate "2018.07.10"]
[EventType "team-tourn"]
[EventCountry "GRE"]
[SourceTitle "playchess.com"]
[Source "ChessBase"]
[SourceQuality "1"]
[TimeControl "40/5400+30:1800+30"]

1. d4 {[%emt 0:00:29]} Nf6 {[%emt 0:00:00]} 2. c4 {[%emt 0:00:06]} g6 {[%emt 0:00:00]} 3. Nc3 {[%emt 0:00:27]} d5 {[%emt 0:00:00]} 4. Nf3 {[%emt 0:00:15]} Bg7 {[%emt 0:00:02]} 5. Qb3 {[%emt 0:00:32]} dxc4 {[%emt 0:00:54]} 6. Qxc4 {[%emt 0:00:04]} O-O {[%emt 0:02:45]} 7. e4 {[%emt 0:00:22]} Be6 {[%emt 0:00:55]} 8. Qd3 {[%emt 0:01:18]} c5 {[%emt 0:02:41]} 9. d5 {[%emt 0:00:23]} Bd7 {[%emt 0:02:42]} 10. Be2 {[%emt 0:11:19]} e6 {[%emt 0:07:46]} 11. Bg5 {[%emt 0:14:45]} h6 {[%emt 0:01:17]} 12. Be3 {[%emt 0:01:10]} exd5 {[%emt 0:05:17]} 13. exd5 {[%emt 0:00:23]} Bf5 {[%emt 0:10:22]} 14. Qd2 {[%emt 0:03:24]} Ne4 {[%emt 0:00:06]} 15. Nxe4 {[%emt 0:00:10]} Bxe4 {[%emt 0:00:05]} 16. Rd1 {[%emt 0:03:59]} Nd7 {[%emt 0:08:20]} 17. O-O {[%emt 0:07:48]} Kh7 {[%emt 0:01:08]} 18. b4 {[%emt 0:06:09]} b6 {[%emt 0:14:53]} 19. Bf4 {[%emt 0:15:16]} f5 {[%emt 0:14:44]} 20. bxc5 {[%emt 0:16:16]} bxc5 {[%emt 0:00:53]} 21. Bb5 {[%emt 0:01:41]} Bxf3 {[%emt 0:11:39]} 22. gxf3 {[%emt 0:00:09]} g5 {[%emt 0:01:22]} 23. Be3 {[%emt 0:05:52]} Ne5 {[%emt 0:01:17]} 24. Be2 {[%emt 0:00:43]} Qd6 {[%emt 0:03:33]} 25. Rb1 {[%emt 0:00:47]} Rac8 {[%emt 0:01:49]} 26. Rfd1 {[%emt 0:02:55]} f4 {[%emt 0:01:29]} 27. Qc2+ {[%emt 0:00:08]} Kh8 {[%emt 0:00:11]} 28. Bc1 {[%emt 0:01:17]} g4 {[%emt 0:03:42]} 29. Bb2 {[%emt 0:00:24]} Rce8 {[%emt 0:01:05]} 30. Kh1 {[%emt 0:01:35]} Re7 {[%emt 0:01:32]} 31. Rbc1 {[%emt 0:01:16]} Rfe8 {[%emt 0:01:48]} 32. Qxc5 {[%emt 0:03:14]} Qxc5 {[%emt 0:00:03]} 33. Rxc5 {[%emt 0:00:02]} gxf3 {[%emt 0:00:12]} 34. Bb5 {[%emt 0:00:29]} Ng4 {[%emt 0:00:54]} 35. Bxg7+ {[%emt 0:01:20]} Rxg7 {[%emt 0:00:02]} 36. Rf1 {[%emt 0:01:00]} Reg8 {[%emt 0:01:35]} 37. h3 {[%emt 0:00:31]} Rg5 {[%emt 0:00:35]} 38. Bd7 {[%emt 0:00:29]} Rh5 {[%emt 0:00:46]} 39. Rc8 {[%emt 0:00:17]} Rxh3+ {[%emt 0:00:34]} 40. Kg1 {[%emt 0:00:00]} Rh5 {[%emt 0:00:00]} 41. d6 {[%emt 0:10:50]} Rxc8 {[%emt 0:12:38]} 42. Bxc8 {[%emt 0:00:03]} Rg5 {[%emt 0:00:12]} 43. Bxg4 {[%emt 0:07:38]} Rxg4+ {[%emt 0:00:07]} 44. Kh2 {[%emt 0:00:07]} Rh4+ {[%emt 0:00:17]} 45. Kg1 {[%emt 0:00:04]} Rg4+ {[%emt 0:00:03]} 46. Kh2 {[%emt 0:00:02]} 1/2-1/2

[Event "46th GRE-chT Premier 2018"]
[Site "Rio Achaia"]
[Date "2018.07.11"]
[Round "2"]
[White "Macieja, Bartlomiej"]
[Black "Mastrovasilis, Dimitrios"]
[Result "1/2-1/2"]
[ECO "A13"]
[WhiteElo "2525"]
[BlackElo "2580"]
[Annotator "ChessBase"]
[PlyCount "88"]
[EventDate "2018.07.10"]
[EventType "team-tourn"]
[EventCountry "GRE"]
[SourceTitle "playchess.com"]
[Source "ChessBase"]
[SourceQuality "1"]
[TimeControl "40/5400+30:1800+30"]

1. c4 {[%emt 0:00:00]} e6 {[%emt 0:01:28]} 2. Nf3 {[%emt 0:00:00]} d5 {[%emt 0:00:27]} 3. g3 {[%emt 0:00:00]} Nf6 {[%emt 0:00:20]} 4. Bg2 {[%emt 0:00:00]} d4 {[%emt 0:00:18]} 5. O-O {[%emt 0:00:53]} c5 {[%emt 0:00:29]} 6. d3 {[%emt 0:05:57]} Nc6 {[%emt 0:01:27]} 7. e3 {[%emt 0:18:35]} Bd6 {[%emt 0:03:32]} 8. exd4 {[%emt 0:03:48]} cxd4 {[%emt 0:00:22]} 9. a3 {[%emt 0:29:04]} a5 {[%emt 0:00:36]} 10. Bg5 {[%emt 0:00:03]} h6 {[%emt 0:00:35]} 11. Bxf6 {[%emt 0:00:02]} Qxf6 {[%emt 0:00:15]} 12. Nbd2 {[%emt 0:00:01]} Qe7 {[%emt 0:00:46]} 13. Re1 {[%emt 0:13:16]} O-O {[%emt 0:02:45]} 14. Rc1 {[%emt 0:00:16]} e5 {[%emt 0:09:38]} 15. c5 {[%emt 0:02:57]} Bxc5 {[%emt 0:20:47]} 16. Nxe5 {[%emt 0:00:31]} Nxe5 {[%emt 0:00:30]} 17. f4 {[%emt 0:00:13]} Bg4 {[%emt 0:11:08]} 18. Qc2 {[%emt 0:00:49]} Bd6 {[%emt 0:00:51]} 19. fxe5 {[%emt 0:00:21]} Bxe5 {[%emt 0:01:37]} 20. Qc5 {[%emt 0:02:24]} Rfe8 {[%emt 0:09:11]} 21. Qxe7 {[%emt 0:01:20]} Rxe7 {[%emt 0:00:03]} 22. Rc5 {[%emt 0:16:10]} Bd6 {[%emt 0:09:01]} 23. Rxe7 {[%emt 0:00:06]} Bxe7 {[%emt 0:00:09]} 24. Rb5 {[%emt 0:03:21]} Bg5 {[%emt 0:01:24]} 25. Nc4 {[%emt 0:00:07]} Re8 {[%emt 0:10:53]} 26. Be4 {[%emt 0:00:01]} Bh3 {[%emt 0:04:33]} 27. Nxa5 {[%emt 0:01:57]} f5 {[%emt 0:01:32]} 28. Bg2 {[%emt 0:00:58]} Bxg2 {[%emt 0:03:19]} 29. Kxg2 {[%emt 0:00:01]} Re2+ {[%emt 0:00:09]} 30. Kf3 {[%emt 0:01:17]} Re3+ {[%emt 0:01:19]} 31. Kf2 {[%emt 0:00:00]} Rxd3 {[%emt 0:00:19]} 32. Nc4 {[%emt 0:00:02]} Rd1 {[%emt 0:00:42]} 33. h4 {[%emt 0:00:56]} Bf6 {[%emt 0:00:38]} 34. Rxb7 {[%emt 0:00:59]} Rc1 {[%emt 0:01:22]} 35. Nd2 {[%emt 0:00:02]} d3 {[%emt 0:03:03]} 36. Rb3 {[%emt 0:00:59]} Kf7 {[%emt 0:01:57]} 37. a4 {[%emt 0:00:28]} Ra1 {[%emt 0:00:29]} 38. Ra3 {[%emt 0:00:33]} Bd4+ {[%emt 0:00:27]} 39. Kf3 {[%emt 0:00:13]} Rd1 {[%emt 0:00:23]} 40. Rxd3 {[%emt 0:00:00]} Bxb2 {[%emt 0:00:00]} 41. a5 {[%emt 0:06:50]} g5 {[%emt 0:12:21]} 42. a6 {[%emt 0:13:53]} gxh4 {[%emt 0:01:10]} 43. gxh4 {[%emt 0:01:22]} Bf6 {[%emt 0:02:18]} 44. Ra3 {[%emt 0:10:14]} Rxd2 {[%emt 0:00:36] Ke4} 1/2-1/2

[Event "46th GRE-chT Premier 2018"]
[Site "Rio Achaia"]
[Date "2018.07.11"]
[Round "2"]
[White "Mastrovasilis, Athanasios"]
[Black "Mihailidis, Anastasios"]
[Result "1-0"]
[ECO "A06"]
[WhiteElo "2497"]
[BlackElo "2265"]
[Annotator "ChessBase"]
[PlyCount "41"]
[EventDate "2018.07.10"]
[EventType "team-tourn"]
[EventCountry "GRE"]
[SourceTitle "playchess.com"]
[Source "ChessBase"]
[SourceQuality "1"]
[TimeControl "40/5400+30:1800+30"]

1. Nf3 {[%emt 0:00:00]} d5 {[%emt 0:02:59]} 2. g3 {[%emt 0:01:23]} Bg4 {[%emt 0:00:49]} 3. Bg2 {[%emt 0:00:16]} Nf6 {[%emt 0:00:07]} 4. h3 {[%emt 0:03:29]} Bf5 {[%emt 0:08:27]} 5. d3 {[%emt 0:04:50]} h6 {[%emt 0:06:00]} 6. c4 {[%emt 0:02:02]} c6 {[%emt 0:05:32]} 7. cxd5 {[%emt 0:01:42]} cxd5 {[%emt 0:02:34]} 8. Qb3 {[%emt 0:01:20]} Qb6 {[%emt 0:03:46]} 9. Qxb6 {[%emt 0:12:36]} axb6 {[%emt 0:01:25]} 10. Nc3 {[%emt 0:04:01]} e6 {[%emt 0:06:56]} 11. Nd4 {[%emt 0:09:55]} Bg6 {[%emt 0:03:33]} 12. Ndb5 {[%emt 0:03:59]} Na6 {[%emt 0:02:33]} 13. O-O {[%emt 0:08:22]} Be7 {[%emt 0:03:37]} 14. Be3 {[%emt 0:05:21]} Bc5 {[%emt 0:17:02]} 15. Bd2 {[%emt 0:05:00]} O-O {[%emt 0:03:59]} 16. a3 {[%emt 0:01:24]} Rfc8 17. b4 Be7 {[%emt 0:01:44]} 18. Be3 {[%emt 0:05:29]} Nd7 {[%emt 0:03:18]} 19. Rac1 {[%emt 0:01:51]} Nc7 {[%emt 0:07:01]} 20. Nxc7 {[%emt 0:00:45]} Rxc7 {[%emt 0:02:55]} 21. Nxd5 {[%emt 0:00:41]} 1-0

[Event "46th GRE-chT Premier 2018"]
[Site "Rio Achaia"]
[Date "2018.07.11"]
[Round "2"]
[White "Nedev, Trajko"]
[Black "Boruchovsky, Avital"]
[Result "1-0"]
[ECO "C07"]
[WhiteElo "2490"]
[BlackElo "2558"]
[Annotator "ChessBase"]
[PlyCount "123"]
[EventDate "2018.07.10"]
[EventType "team-tourn"]
[EventCountry "GRE"]
[SourceTitle "playchess.com"]
[Source "ChessBase"]
[SourceQuality "1"]
[TimeControl "40/5400+30:1800+30"]

1. e4 {[%emt 0:00:00]} e6 {[%emt 0:00:00]} 2. d4 {[%emt 0:00:00]} d5 {[%emt 0:00:00]} 3. Nd2 {[%emt 0:00:00]} c5 {[%emt 0:00:00]} 4. exd5 {[%emt 0:00:00]} Qxd5 {[%emt 0:00:00]} 5. Ngf3 {[%emt 0:00:00]} cxd4 {[%emt 0:00:03]} 6. Bc4 {[%emt 0:00:04]} Qd6 {[%emt 0:00:07]} 7. Ne4 {[%emt 0:00:03]} Qb4+ {[%emt 0:01:22]} 8. Nfd2 {[%emt 0:00:04]} Nc6 {[%emt 0:02:13]} 9. O-O {[%emt 0:00:08]} Qb6 {[%emt 0:03:56]} 10. c3 {[%emt 0:07:11]} Bd7 {[%emt 0:05:58]} 11. Bb3 {[%emt 0:02:49]} Nf6 {[%emt 0:20:02]} 12. Nc4 {[%emt 0:02:30]} Qa6 {[%emt 0:00:36]} 13. Nxf6+ {[%emt 0:03:47]} gxf6 {[%emt 0:00:07]} 14. cxd4 {[%emt 0:00:11]} Nb4 {[%emt 0:00:05]} 15. Re1 {[%emt 0:07:08]} Bb5 {[%emt 0:18:04]} 16. Na3 {[%emt 0:06:56]} O-O-O {[%emt 0:01:38]} 17. Nxb5 {[%emt 0:08:25]} Qxb5 {[%emt 0:00:03]} 18. Qf3 {[%emt 0:02:08]} Be7 {[%emt 0:07:22]} 19. Bf4 {[%emt 0:05:18]} Rxd4 {[%emt 0:00:15]} 20. a4 {[%emt 0:03:41]} Qa6 {[%emt 0:02:06]} 21. Rec1+ {[%emt 0:10:18]} Nc6 {[%emt 0:00:25]} 22. Be3 {[%emt 0:01:12]} Rb4 {[%emt 0:04:25]} 23. Bd2 {[%emt 0:01:05]} Rh4 {[%emt 0:05:13]} 24. Bf4 {[%emt 0:03:03]} e5 {[%emt 0:02:39]} 25. Bc4 {[%emt 0:01:54]} Qa5 {[%emt 0:04:37]} 26. Bg3 {[%emt 0:00:53]} Rd4 {[%emt 0:02:35]} 27. b4 {[%emt 0:02:33]} Qd8 {[%emt 0:07:14]} 28. Ba6 {[%emt 0:07:43]} Qd5 {[%emt 0:00:11]} 29. Rxc6+ {[%emt 0:00:51]} Kb8 {[%emt 0:00:24]} 30. Rxf6 {[%emt 0:00:35]} bxa6 {[%emt 0:01:03]} 31. Rxf7 {[%emt 0:00:44]} Bd6 {[%emt 0:03:05]} 32. Qxd5 {[%emt 0:01:57]} Rxd5 {[%emt 0:00:02]} 33. Rd7 {[%emt 0:00:11]} Re8 {[%emt 0:00:07]} 34. h3 {[%emt 0:01:27]} h5 {[%emt 0:01:17]} 35. Re1 {[%emt 0:01:50]} Re6 {[%emt 0:01:50]} 36. Re4 {[%emt 0:03:32]} Kc8 {[%emt 0:00:21]} 37. Rxa7 Rd1+ {[%emt 0:01:36]} 38. Kh2 {[%emt 0:00:45]} Rd4 {[%emt 0:00:03]} 39. f3 {[%emt 0:01:26]} Rxe4 {[%emt 0:00:19]} 40. fxe4 {[%emt 0:00:00]} Bxb4 {[%emt 0:00:00]} 41. Rh7 {[%emt 0:00:14]} Bc3 {[%emt 0:00:16]} 42. Rxh5 {[%emt 0:00:08]} Kc7 {[%emt 0:00:06]} 43. Rg5 {[%emt 0:06:56]} Kd6 {[%emt 0:01:42]} 44. h4 {[%emt 0:00:13]} Bd2 {[%emt 0:00:41]} 45. Rg8 {[%emt 0:01:13]} Kc5 {[%emt 0:00:08]} 46. Rd8 {[%emt 0:00:26]} Bf4 {[%emt 0:00:20]} 47. Rd5+ {[%emt 0:07:35]} Kb4 {[%emt 0:03:05]} 48. a5 {[%emt 0:00:09]} Rg6 {[%emt 0:00:05]} 49. Bxf4 {[%emt 0:00:13]} exf4 {[%emt 0:00:01]} 50. h5 {[%emt 0:03:11]} Rg4 {[%emt 0:00:14]} 51. Rf5 {[%emt 0:00:57]} Kc4 {[%emt 0:00:43]} 52. Kh3 {[%emt 0:01:45]} Rg3+ {[%emt 0:00:05]} 53. Kh4 {[%emt 0:00:28]} Rxg2 {[%emt 0:00:08]} 54. Rxf4 {[%emt 0:00:20]} Kd4 {[%emt 0:01:46]} 55. Rg4 {[%emt 0:00:15]} Rc2 {[%emt 0:02:12]} 56. h6 {[%emt 0:01:43]} Ke5 {[%emt 0:01:07]} 57. Kg5 {[%emt 0:00:49]} Rc7 {[%emt 0:00:17]} 58. Kg6 {[%emt 0:01:01]} Rc6+ {[%emt 0:00:06]} 59. Kh5 {[%emt 0:00:05]} Rc7 {[%emt 0:00:41]} 60. Kg6 {[%emt 0:02:40]} Rc6+ {[%emt 0:00:21]} 61. Kg5 {[%emt 0:00:03]} Rc7 {[%emt 0:00:11]} 62. Rh4 {[%emt 0:00:03]} 1-0